[Event "87th Spanish Championship 2022"]
[Site "Linares"]
[Date "2022.08.13"]
[Round "3.10"]
[White "Silva Lucena, Cristian"]
[Black "Merario Alarcon, Andres"]
[Result "1-0"]
[ECO "B75"]
[WhiteElo "2212"]
[BlackElo "2418"]
[Annotator "TA"]
[PlyCount "91"]
[EventDate "2022.08.11"]
[EventType "swiss"]
[EventCountry "ESP"]
[SourceTitle "playchess.com"]
[Source "ChessBase"]
[SourceQuality "1"]
[TimeControl "5400+30"]

{[%evp 14,91,61,58,52,24,33,15,32,-12,9,10,12,24,20,23,15,11,17,17,22,46,17,16,68,69,57,22,27,32,32,43,45,45,41,37,40,12,75,83,118,110,153,88,137,77,83,76,168,166,654,591,583,529,343,8,1990,1724,29964,29961,29975,29976,29977,29978,29978,29979,29979,29980,29980,29981,29981,29981,29984,29985,29985,29986,29986,29987,29987,29988]} 1. e4 {[%emt 0:00:41]} c5 {[%emt 0:00:13]} 2. Nf3 {[%emt 0:00:08]} d6 {[%emt 0:00:36]} 3. d4 {[%emt 0:00:35]} cxd4 {[%emt 0:00:05]} 4. Nxd4 {[%emt 0:00:06]} Nf6 {[%emt 0:00:14]} 5. Nc3 {[%emt 0:00:03]} g6 {[%emt 0:00:45]} 6. Be3 {[%emt 0:00:06]} Bg7 {[%emt 0:00:07]} 7. f3 {[%emt 0:00:05]} a6 {[%emt 0:00:42]} 8. Qd2 {[%emt 0:00:28] White is more active.} h5 {[%emt 0:00:09] 8...b5 is the modern continuation. B75: Sicilian Dragon: Yugoslav Attack, Miscellaneous.} 9. O-O-O {[%emt 0:02:22]} b5 {[%emt 0:01:27]} 10. Nb3 {[%emt 0:01:46][%cal Oe4e5]} Nbd7 {[%emt 0:06:59] The position is equal.} 11. Nd5 {[%emt 0:04:49]} Bb7 {[%emt 0:01:38]} 12. Nxf6+ {[%emt 0:00:59]} Bxf6 {[%emt 0:00:22]} 13. Na5 {[%emt 0:01:03]} Qc7 {[%emt 0:00:43]} 14. Nxb7 {[%emt 0:00:31]} Qxb7 {[%emt 0:00:02]} 15. Qd5 {[%emt 0:00:34]} Qxd5 {[%emt 0:02:40]} (15... Qc8 {seems wilder.} 16. f4 Rb8 17. Be2 Nb6) 16. Rxd5 {[%emt 0:00:04] [#]} O-O $146 {[%emt 0:02:38]} ({Predecessor:} 16... Rc8 17. a4 bxa4 18. Bxa6 Rb8 19. Bb5 e6 20. Bd4 exd5 21. Bxf6 Rxb5 22. Bxh8 f6 {0-1 (44) Egeland,F (1946)-Abrahamsen,K (1860) Oslo 2016}) 17. f4 {[%emt 0:01:51][%cal Oe4e5]} Bg7 {[%emt 0:14:22] Against e5} 18. e5 {[%emt 0:03:52] Prevents Nf6.} Bh6 {[%emt 0:07:31]} (18... Rfd8 $11) 19. exd6 $14 {[%emt 0:04:25]} Nf6 {[%emt 0:00:31]} 20. dxe7 {[%emt 0:00:52]} Nxd5 {[%emt 0:03:09]} 21. exf8=Q+ {[%emt 0:00:14]} Rxf8 {[%emt 0:00:02]} 22. Bd2 {[%emt 0:00:31] Hoping for g3.} Bxf4 {[%emt 0:00:11]} 23. Bxf4 {[%emt 0:00:41]} Nxf4 {[%emt 0:00:01][%mdl 4096] Endgame KRB-KRN} 24. g3 {[%emt 0:00:10]} Ne6 {[%emt 0:03:17]} 25. Bg2 {[%emt 0:00:49]} Rd8 {[%emt 0:03:38]} (25... b4 $11) 26. Rd1 $1 $16 {[%emt 0:00:30]} Rxd1+ 27. Kxd1 {[%emt 0:00:01] KB-KN} Kf8 {[%emt 0:16:33]} 28. Kd2 {[%emt 0:04:04]} (28. b4 $142 $1) 28... Ke7 {[%emt 0:03:14]} (28... a5 $142) 29. Kc3 {[%emt 0:00:18]} (29. b4 $142 $1) 29... Kd6 {[%emt 0:01:35]} 30. Kb4 {[%emt 0:00:59]} Nd4 {[%emt 0:00:49]} (30... g5 $16 {was necessary.}) 31. c3 $1 $18 {[%emt 0:01:02][%cal Bc2c3,Bc3c4,Bc4b5][%mdl 32]} Nc6+ {[%emt 0:00:33]} (31... Ne6 32. Ka5 Nc7) 32. Bxc6 {[%emt 0:00:16]} Kxc6 {[%emt 0:00:01] [#] KP-KP} 33. c4 {[%emt 0:00:27]} g5 {[%emt 0:10:33]} 34. Kc3 $2 {[%emt 0:02:43]} (34. cxb5+ $18 axb5 35. Kc3) 34... f5 $2 {[%emt 0:05:19][%mdl 8192] [#] This costs Black the game.} (34... bxc4 $11 35. Kxc4 Kd6) 35. cxb5+ $1 {[%emt 0:06:16]} Kxb5 {[%emt 0:02:09]} 36. Kd4 {[%emt 0:01:19] White mates.} a5 {[%emt 0:09:06]} 37. Ke5 {[%emt 0:01:55]} f4 {[%emt 0:00:21]} 38. gxf4 {[%emt 0:01:05]} gxf4 {[%emt 0:00:02]} 39. Kxf4 {[%emt 0:00:50] K3P-KPP} Kc4 {[%emt 0:00:11]} 40. h4 {[%emt 0:03:59][%cal Bh2h4,Bh4h5,Bh5h6][%mdl 32]} Kd3 {[%emt 0:00:21]} 41. Kg5 {[%emt 0:00:29]} Kc2 {[%emt 0:00:06]} 42. Kxh5 {[%emt 0:00:07]} Kxb2 {[%emt 0:00:05]} 43. a4 {[%emt 0:00:09]} Kb3 {[%emt 0:01:54]} 44. Kg4 {[%emt 0:00:12]} Kxa4 {[%emt 0:00:04]} 45. h5 {[%emt 0:00:04]} Kb3 {[%emt 0:00:07]} 46. h6 {[%emt 0:00:05] Weighted Error Value: White=0.27 (precise) /Black=0.50} 1-0

[Event "87th Spanish Championship 2022"]
[Site "Linares"]
[Date "2022.08.13"]
[Round "3.11"]
[White "Asis Gargatagli, Hipolito"]
[Black "Jimenez Fernandez, Rebeca"]
[Result "1-0"]
[ECO "B22"]
[WhiteElo "2514"]
[BlackElo "1908"]
[Annotator "TA"]
[PlyCount "121"]
[EventDate "2022.08.11"]
[EventType "swiss"]
[EventCountry "ESP"]
[SourceTitle "playchess.com"]
[Source "ChessBase"]
[SourceQuality "1"]
[TimeControl "5400+30"]

{[%evp 9,121,19,32,27,29,27,21,19,33,20,38,32,52,43,51,82,122,127,125,111,131,97,62,60,135,134,152,112,143,134,125,122,170,162,147,147,154,93,101,100,93,82,299,331,325,331,337,333,319,170,158,167,163,172,218,148,284,280,265,274,292,292,281,196,167,150,215,0,182,79,78,78,79,79,54,66,63,54,55,54,127,127,213,71,245,185,178,62,58,51,168,151,151,135,288,266,692,673,594,562,2226,2046,10594,6111,12835,7531,29957,29954,29977,29976,29978,29979,29986,29987]} 1. e4 {[%emt 0:00:04][%cal Be2e4,Be4e5][%mdl 32]} c5 {[%emt 0:00:05]} 2. c3 {[%emt 0:00:09]} Nf6 {[%emt 0:00:05]} 3. e5 {[%emt 0:00:04]} Nd5 {[%emt 0:00:05]} 4. Bc4 {[%emt 0:00:04][%cal Bf1c4,Bc4b3,Bb3c2][%mdl 32]} Nb6 {[%emt 0:00:06]} 5. Bb3 {[%emt 0:00:04]} c4 {[%emt 0:00:16]} 6. Bc2 {[%emt 0:00:05] B22: Sicilian: 2 c3.} d6 {[%emt 0:00:12]} 7. exd6 {[%emt 0:01:22]} Qxd6 {[%emt 0:00:05]} 8. Nf3 {[%emt 0:02:24] The position is equal.} Qe6+ {[%emt 0:00:39]} 9. Kf1 {[%emt 0:00:06]} Nc6 {[%emt 0:01:23]} 10. Na3 {[%emt 0:00:30]} Qd5 {[%emt 0:07:57]} 11. Qe2 $1 {[%emt 0:06:31]} Bg4 {[%emt 0:10:20]} 12. Be4 {[%emt 0:21:47] [#]} Qc5 $146 {[%emt 0:17:13]} ({Predecessor:} 12... Qe6 13. h3 Bh5 14. b3 cxb3 15. axb3 O-O-O 16. Nc4 Nd5 17. Na5 f5 18. Nxc6 Qxc6 19. Bxf5+ {½-½ (104) Lodici,L (2404)-Shevchenko,K (2537) Trieste 2017}) 13. b4 {[%emt 0:10:58]} cxb3 {[%emt 0:05:38]} 14. axb3 {[%emt 0:00:19] And now Nb5 would win.} e6 {[%emt 0:20:38]} 15. Nb5 {[%emt 0:26:22] Black must now prevent Nc7+.} Qe7 {[%emt 0:01:22] Inhibits Nc7+.} 16. Qe3 {[%emt 0:06:23]} Bxf3 {[%emt 0:15:34]} (16... Qd7 $1 $14) 17. Qxf3 $16 {[%emt 0:07:33]} (17. Bxf3 $6 Qd7 $14) 17... Qd7 {[%emt 0:01:43]} 18. Qg3 $1 {[%emt 0:01:08] Strongly threatening Nc7+.} Rc8 {[%emt 0:07:32] Prevents Nc7+.} 19. Bxc6 {[%emt 0:07:30]} (19. Nxa7 $6 Ra8 $11) 19... Rxc6 {[%emt 0:00:21]} 20. Rxa7 {[%emt 0:00:48]} Rc8 {[%emt 0:01:15]} (20... Nc8 $16) 21. c4 $18 {[%emt 0:03:16]} Bc5 {[%emt 0:07:33][%cal Ob6c4]} 22. Qxg7 {[%emt 0:02:59]} Rf8 {[%emt 0:00:54]} 23. Qg3 {[%emt 0:00:53] Prevents Qd3+.} (23. Qxh7 Nxc4 $1 24. bxc4 Bxa7 $11) (23. d4 $142 Nxc4 24. bxc4 Bxa7 25. Nxa7 (25. Ba3 $2 Bc5 $17)) 23... Nxc4 $16 {[%emt 0:00:30]} 24. bxc4 {[%emt 0:00:03]} Bxa7 {[%emt 0:00:13]} 25. Nd6+ {[%emt 0:00:04]} (25. Nxa7 $6 Qa4 26. Ke2 Qxa7 $11) 25... Kd8 $2 {[%emt 0:00:38]} (25... Ke7 $16 26. Ba3 (26. Nxc8+ Rxc8 27. Ba3+ Kd8 $16) 26... Bc5 27. Qh4+ (27. Nxc8+ Rxc8 28. Qg5+ Kd6 $16) 27... Kxd6 28. Qd4+ Ke7 29. Bxc5+ Rxc5 30. Qxc5+ Kf6) 26. Nxc8 $18 {[%emt 0:01:06]} ({Weaker is} 26. Ba3 Bc5 27. Bxc5 (27. Nxc8 $2 Qxd2 28. Qf3 Bxa3 $19) 27... Rxc5 $11) 26... Kxc8 {[%emt 0:00:05]} 27. Qa3 {[%emt 0:00:50][%csl LRa7,LRf8] Inhibits Qa4.} Rd8 {[%emt 0:00:51]} 28. Qxa7 {[%emt 0:00:31]} Qd3+ {[%emt 0:00:09]} 29. Kg1 {[%emt 0:00:34]} (29. Ke1 $142 $1) 29... Qc2 {[%emt 0:00:46][%cal Rc2c1]} 30. Qc5+ {[%emt 0:00:22]} Kd7 {[%emt 0:00:46][%cal Rc2c1] [#]} 31. g3 $1 {[%emt 0:00:32]} Qxc1+ {[%emt 0:00:17][%mdl 4096] Endgame KQR-KQR} 32. Kg2 {[%emt 0:00:04]} Qxd2 {[%emt 0:00:13]} (32... Qc2 $16 {is a better defense.}) 33. Rb1 {[%emt 0:00:46]} Rb8 {[%emt 0:00:32]} 34. Qh5 {[%emt 0:00:20][%csl LRf7,LRh7]} Ke7 {[%emt 0:00:30]} 35. Rd1 {[%emt 0:00:52]} (35. Qxh7 Qd4 36. Qc2 b5 37. Rxb5 Rxb5 38. cxb5 Qd5+ 39. f3 Qxb5 $16) 35... Qc2 {[%emt 0:00:54]} 36. Qg5+ {[%emt 0:00:34]} Kf8 {[%emt 0:00:24]} 37. Qh6+ {[%emt 0:00:26]} ({Don't play} 37. Rd7 $6 Qe4+ 38. Kh3 Qf5+ 39. Qxf5 exf5 $16) 37... Ke7 {[%emt 0:00:06]} (37... Ke8 $16 38. Rd4 Qg6) 38. Qg5+ {[%emt 0:00:15]} Kf8 $1 {[%emt 0:00:05]} 39. Rd7 {[%emt 0:00:20]} (39. Qc5+ $18 {is more deadly.} Kg8 40. Rd4) 39... Qe4+ $16 {[%emt 0:00:35]} 40. Kh3 {[%emt 0:00:31] White is much more active.} Qf5+ {[%emt 0:00:31]} 41. Qxf5 {[%emt 0:00:11]} exf5 {[%emt 0:00:07][%cal Be6f5,Bf5f4][%mdl 32] KR-KR} 42. Rd5 $1 {[%emt 0:00:12]} Rc8 {[%emt 0:01:10]} 43. c5 {[%emt 0:00:05]} f4 $1 {[%emt 0:00:12]} 44. g4 {[%emt 0:00:04]} Ke7 {[%emt 0:00:17]} (44... Ra8 $14) 45. Kg2 {[%emt 0:00:27]} Rd8 {[%emt 0:01:08] [#]} (45... Kf6 $16 {was necessary.} 46. Kf3 Ke7) 46. Re5+ {[%emt 0:00:41]} (46. Rh5 $1 $18) 46... Kd7 $2 {[%emt 0:00:13]} (46... Kf8 $16) 47. Rf5 {[%emt 0:00:04]} Ke6 {[%emt 0:01:09]} 48. Rxf4 {[%emt 0:01:18]} ({Better is} 48. Kf3 $18) 48... Rd5 $1 $14 {[%emt 0:00:33]} 49. Rc4 {[%emt 0:00:11] aiming for c6.} Rg5 {[%emt 0:00:07] [#]} ({Black should try} 49... h5 $14) 50. h4 $1 $18 {[%emt 0:00:14]} Rg8 {[%emt 0:00:20]} 51. Kf3 {[%emt 0:00:36] Threatens to win with Rb4.} Kd5 $2 {[%emt 0:00:06]} (51... Rc8 $16 {was worth a try.}) 52. Rf4 {[%emt 0:00:21]} Kxc5 $2 {[%emt 0:01:33]} (52... Rg7 53. Rf5+ Ke6) 53. Rxf7 {[%emt 0:00:05]} b5 {[%emt 0:00:18]} 54. Rxh7 {[%emt 0:00:06]} b4 {[%emt 0:00:26]} 55. Rb7 {[%emt 0:00:07] Against Rb8. Hoping for g5.} Kc4 {[%emt 0:00:21]} 56. g5 {[%emt 0:01:18] White wants to mate with Kg4.} b3 {[%emt 0:00:14]} 57. Kg4 {[%emt 0:00:18] h5 would kill now.} Kc3 {[%emt 0:00:20]} 58. h5 {[%emt 0:00:32][%cal Bh4h5,Bh5h6][%mdl 32] White mates.} Rd8 {[%emt 0:00:17]} 59. h6 {[%emt 0:00:34]} Rd4+ {[%emt 0:00:20]} 60. f4 {[%emt 0:00:08]} Rb4 {[%emt 0:01:12]} 61. Rxb4 {[%emt 0:00:20] Weighted Error Value: White=0.17 (very precise) /Black=0.46} 1-0

[Event "87th Spanish Championship 2022"]
[Site "Linares"]
[Date "2022.08.13"]
[Round "3.12"]
[White "Lin, Yingrui"]
[Black "Narciso Dublan, Marc"]
[Result "0-1"]
[ECO "A90"]
[WhiteElo "2314"]
[BlackElo "2461"]
[Annotator "TA"]
[PlyCount "70"]
[EventDate "2022.08.11"]
[EventType "swiss"]
[EventCountry "ESP"]
[SourceTitle "playchess.com"]
[Source "ChessBase"]
[SourceQuality "1"]
[TimeControl "5400+30"]

{[%evp 13,70,20,21,10,16,0,4,0,9,0,0,0,18,18,21,18,21,-75,-72,-112,-118,-147,-150,-142,-133,-137,-160,-139,-145,-312,-307,-322,-303,-362,-360,-399,-401,-500,-506,-513,-498,-920,-840,-1261,-1231,-1205,-1199,-1427,-1390,-29990,-29991,-29993,-77,-29994,-29995,-29995,-29996,-29997,-29998]} 1. d4 {[%emt 0:00:06]} e6 {[%emt 0:00:22]} 2. c4 {[%emt 0:01:00]} f5 {[%emt 0:00:32]} 3. g3 {[%emt 0:01:41]} Nf6 {[%emt 0:00:22]} 4. Bg2 {[%emt 0:00:20]} d5 {[%emt 0:00:46]} 5. Nf3 {[%emt 0:06:22]} Bd6 {[%emt 0:00:26]} 6. O-O {[%emt 0:01:18]} O-O $1 {[%emt 0:00:10][%mdl 4] now scores much better than the old 6...c6.} 7. b3 {[%emt 0:03:02]} b6 {[%emt 0:00:55]} 8. Ba3 {[%emt 0:03:41] A90: Dutch Defence: Miscellaneous and Modern Stonewall (with ...Bd6).} Bb7 {[%emt 0:00:24]} 9. Bxd6 {[%emt 0:13:03]} cxd6 {[%emt 0:00:13]} 10. Nc3 {[%emt 0:00:14] The position is equal.} Ne4 {[%emt 0:00:29]} 11. Rc1 {[%emt 0:01:26]} Nd7 {[%emt 0:00:35] [#]} 12. Ne1 $146 {[%emt 0:12:58]} ({Predecessor:} 12. cxd5 Nxc3 13. Rxc3 Bxd5 14. Qc2 Nf6 15. Qb2 Be4 16. Nd2 Bxg2 17. Kxg2 Nd5 18. Rc2 {0-1 (59) Martinez Martin,D (2376)-Narciso Dublan,M (2520) chess24.com INT 2021}) 12... Rc8 {[%emt 0:03:25]} 13. Nb5 {[%emt 0:02:38]} a6 {[%emt 0:09:10]} 14. Bxe4 {[%emt 0:00:12][%cal Ob5d6]} axb5 {[%emt 0:00:08]} 15. Bf3 {[%emt 0:00:11]} (15. Bd3 $1 $11) 15... Qc7 $17 {[%emt 0:05:12][%cal Rb5c4] White is on the road to losing.} 16. Nd3 {[%emt 0:12:17] [#] And now cxd5 would win.} bxc4 {[%emt 0:02:58]} 17. bxc4 {[%emt 0:06:47]} dxc4 {[%emt 0:00:14]} 18. Nf4 {[%emt 0:00:06]} Rfe8 {[%emt 0:02:34]} 19. d5 {[%emt 0:01:59]} e5 {[%emt 0:01:16]} 20. Ne6 {[%emt 0:00:16]} Qb8 {[%emt 0:00:22]} 21. e4 $2 {[%emt 0:08:30]} (21. Qd2 $17) 21... fxe4 $19 {[%emt 0:01:48]} 22. Bxe4 {[%emt 0:00:33] aiming for Qg4.} Nf6 {[%emt 0:00:23] Against Qg4} 23. f3 {[%emt 0:01:42]} Qa8 {[%emt 0:02:05]} 24. Qd2 {[%emt 0:12:00][%cal Oe6g7] Threatens to win with Nxg7!} Bxd5 {[%emt 0:25:47]} 25. Nxg7 {[%emt 0:00:12]} Kxg7 {[%emt 0:00:14][%cal Bg8g7,Bg7f7,Bf7e8,Be8d7][%mdl 32]} 26. Qg5+ {[%emt 0:00:05]} Kf7 {[%emt 0:00:10]} 27. f4 {[%emt 0:00:42]} (27. Qh6 $142 Rg8 28. Rcd1) 27... Rg8 {[%emt 0:01:05]} ({Stronger than} 27... Bxe4 28. fxe5 Re6 29. Rxf6+ Rxf6 30. Qxf6+ Kg8 31. Qe6+ Kh8 32. Qf6+ Kg8 33. Qe6+ Kh8 34. Qf6+ Kg8 $11) 28. Qh6 {[%emt 0:01:02]} Nxe4 {[%emt 0:01:36]} 29. fxe5+ {[%emt 0:01:34]} Ke8 {[%emt 0:00:20][%cal Oe4g3] ...Nxg3! is the strong threat.} 30. Rce1 {[%emt 0:02:27]} Qa3 {[%emt 0:07:12][%cal Og8g3] ( -> ...Rxg3+!)} 31. exd6 {[%emt 0:05:51] [#]} Rxg3+ $1 {[%emt 0:05:29]} 32. hxg3 {[%emt 0:00:21]} (32. Kh1 Kd7) 32... Qxg3+ {[%emt 0:00:08]} 33. Kh1 {[%emt 0:00:02]} Kd7 {[%emt 0:00:45][%csl Gg3][%cal Re4f2] Black mates.} 34. Qxh7+ {[%emt 0:00:27]} Kxd6 {[%emt 0:00:35][%csl Gg3][%cal Re4f2]} 35. Qh6+ {[%emt 0:01:55]} Nf6+ {[%emt 0:00:13] Weighted Error Value: White=0.85/Black=0.04 (flawless)} 0-1

[Event "87th Spanish Championship 2022"]
[Site "Linares"]
[Date "2022.08.13"]
[Round "3.13"]
[White "Plazuelo Pascual, Juan"]
[Black "Vehi Bach, Victor Manuel"]
[Result "1-0"]
[ECO "B81"]
[WhiteElo "2448"]
[BlackElo "2290"]
[Annotator "TA"]
[PlyCount "41"]
[EventDate "2022.08.11"]
[EventType "swiss"]
[EventCountry "ESP"]
[SourceTitle "playchess.com"]
[Source "ChessBase"]
[SourceQuality "1"]
[TimeControl "5400+30"]

{[%evp 21,41,110,140,102,102,102,257,262,252,234,368,364,384,376,867,783,1266,1258,1378,1356,1281,1241]} 1. e4 {[%emt 0:00:04]} c5 {[%emt 0:00:24]} 2. Nf3 {[%emt 0:00:08]} e6 {[%emt 0:00:09]} 3. d4 {[%emt 0:00:06]} cxd4 {[%emt 0:00:06]} 4. Nxd4 {[%emt 0:00:03]} Nf6 {[%emt 0:06:27]} 5. Nc3 {[%emt 0:00:14]} d6 {[%emt 0:00:06]} 6. g4 {[%emt 0:00:54][%cal Bg2g4,Bg4g5][%mdl 32]} a6 {[%emt 0:01:21]} 7. g5 {[%emt 0:02:32]} Nfd7 {[%emt 0:00:53]} 8. Be3 {[%emt 0:00:41]} b5 {[%emt 0:01:12]} 9. a3 {[%emt 0:00:27]} Bb7 {[%emt 0:00:24]} 10. h4 {[%emt 0:00:42]} Nb6 {[%emt 0:04:29]} 11. h5 {[%emt 0:13:54]} N8d7 {[%emt 0:03:06]} 12. Rh3 {[%emt 0:06:02][%cal Og5g6] White is more active. B81: Sicilian Scheveningen: Keres Attack.} Ne5 {[%emt 0:14:04] Inhibits g6.} 13. g6 {[%emt 0:01:36] Threatens to win with gxf7+.} Nbc4 $2 {[%emt 0:14:40] [#] A mistake that costs the game.} (13... Qc7 $16 {was called for.}) 14. gxf7+ $146 {[%emt 0:09:07] White has a decisive advantage.} ({Predecessor:} 14. Bxc4 Nxc4 15. gxf7+ Kxf7 16. Qg4 Qe7 17. Bg5 Qd7 18. Nd5 Ra7 19. Rf3+ Ke8 20. Nc7+ {1-0 (20) Kauranen,R-Estrin,Y ICCF corr 1978}) 14... Kxf7 {[%emt 0:01:47]} 15. Bxc4 {[%emt 0:03:16]} bxc4 {[%emt 0:00:07]} (15... Nxc4 $142 16. Qg4 Bc8) 16. f4 {[%emt 0:00:59][%cal Bf2f4,Bf4f5][%mdl 32]} Nd7 {[%emt 0:01:06]} 17. f5 {[%emt 0:02:41]} ({Not} 17. Qg4 Qe8 18. O-O-O (18. Rg3 Nf6 $16) 18... Nf6 $18) 17... e5 {[%emt 0:04:26] [#]} (17... exf5 18. Nxf5 Ne5) 18. Ne6 {[%emt 0:00:26] Pair of Knights! White is clearly winning.} Qa5 {[%emt 0:00:20]} 19. h6 {[%emt 0:04:55]} g6 {[%emt 0:01:27]} 20. fxg6+ {[%emt 0:05:18]} hxg6 {[%emt 0:02:00]} 21. Qg4 {[%emt 0:00:58] Weighted Error Value: White=0.07 (flawless) /Black=0.70} 1-0

[Event "87th Spanish Championship 2022"]
[Site "Linares"]
[Date "2022.08.13"]
[Round "3.14"]
[White "Gonzalez Perez, Arian"]
[Black "Cesar Maestre, Bernardo"]
[Result "0-1"]
[ECO "D31"]
[WhiteElo "2418"]
[BlackElo "2343"]
[Annotator "TA"]
[PlyCount "108"]
[EventDate "2022.08.11"]
[EventType "swiss"]
[EventCountry "ESP"]
[SourceTitle "playchess.com"]
[Source "ChessBase"]
[SourceQuality "1"]
[TimeControl "5400+30"]

{[%evp 16,108,0,0,101,87,142,149,254,247,240,145,166,173,161,71,56,0,0,-131,-131,-131,-131,-180,0,-87,0,-150,-163,-147,-139,-138,-137,-172,-134,-129,-129,-132,0,0,0,-618,-618,-602,-614,-656,-646,-644,-616,-652,-651,-627,-631,-662,-656,-995,-1020,-875,-1005,-989,-851,-867,-859,-869,-852,-849,-846,-826,-801,-864,-807,-1069,-1036,-1608,-1485,-29973,-29973,-29973,-29973,-29972,-29973,-29969,-29970,-29976,-29977,-29981,-29981,-29984,-29984,-29983,-29985,-29985,-29986,-29987,-29985]} 1. d4 {[%emt 0:07:49]} d5 {[%emt 0:00:09]} 2. c4 {[%emt 0:00:05]} e6 {[%emt 0:00:05]} 3. Nc3 {[%emt 0:00:20]} c6 {[%emt 0:00:07]} 4. e4 {[%emt 0:00:13]} dxe4 {[%emt 0:00:08]} 5. Nxe4 {[%emt 0:00:10]} Bb4+ {[%emt 0:00:05]} 6. Bd2 {[%emt 0:00:11]} Qxd4 {[%emt 0:00:08]} 7. Bxb4 {[%emt 0:00:04]} Qxe4+ {[%emt 0:00:08]} 8. Be2 {[%emt 0:00:06]} Na6 {[%emt 0:00:23]} 9. Bd6 {[%emt 0:00:09]} Bd7 {[%emt 0:18:23] D31: Queen's Gambit Declined: Semi-Slav without ...Nf6 (+ Marshall Gambit and Noteboom) and Exchange Variation lines without ...Nf6.} (9... Qxg2 $11 {keeps the balance.} 10. Bf3 Qg6) 10. Nf3 $16 {[%emt 0:03:08][%mdl 1024] [#] White has strong compensation.} Rd8 $146 {[%emt 0:11:56]} (10... c5 $142) ({Predecessor:} 10... c5 11. O-O Bc6 12. Re1 O-O-O 13. Bf1 Qg4 14. Ne5 Qxd1 15. Raxd1 Nh6 16. Nxc6 bxc6 17. b4 cxb4 {0-1 (41) Iljin,T (2410)-Belikov,V (2477) Alushta 2013}) 11. O-O {[%emt 0:15:18] And now Bd3 would win.} Ne7 {[%emt 0:10:30] [#]} (11... Bc8 $16) 12. Bd3 $1 $18 {[%emt 0:09:28] A strong pair of Bishops.} Qg4 {[%emt 0:00:54]} 13. Re1 {[%emt 0:00:24] Re4 is the strong threat.} Qh5 {[%emt 0:16:10]} 14. Re5 {[%emt 0:21:24]} Qh6 {[%emt 0:01:33][%cal Oc6c5]} 15. Nd4 {[%emt 0:02:10]} (15. Qb3 $18 Nc8 16. Qxb7 Nxd6 17. Qxa6) 15... Qf6 $16 {[%emt 0:04:01] White must now prevent ...Nc8.} 16. Re4 {[%emt 0:08:21]} (16. Qe1 $14) 16... c5 $11 {[%emt 0:05:13]} 17. Nf3 {[%emt 0:13:34]} ({Avoid the trap} 17. Rf4 $2 Qh6 18. Bxe7 (18. Nf3 $2 Bc6 $19) 18... Kxe7 $19) (17. Be5 $1 $11 {was the only way to keep the balance.} Qg5 18. f4) 17... Bc6 $17 {[%emt 0:02:03]} 18. Be5 {[%emt 0:04:12]} Qh6 {[%emt 0:02:44]} 19. Bf4 {[%emt 0:01:08]} (19. Rg4 $17 f6 20. Bc3) 19... Qf6 {[%emt 0:01:17]} (19... Qh5 $19 {has better winning chances.} 20. Qb3 Nb4) 20. Be5 {[%emt 0:00:02]} Qh6 {[%emt 0:00:08]} ({Black should try} 20... Qf5 21. Re3 Bxf3 22. Qxf3 Qxf3 23. Rxf3 f6) 21. Bf4 $1 {[%emt 0:00:02]} Qg6 {[%emt 0:04:54]} 22. Re3 {[%emt 0:07:19] [#]} Qg4 {[%emt 0:00:40]} 23. Bg3 {[%emt 0:00:44]} Nf5 {[%emt 0:00:19]} 24. Re1 {[%emt 0:01:17]} Nxg3 {[%emt 0:02:31]} 25. hxg3 {[%emt 0:00:05]} Nb4 {[%emt 0:02:38]} 26. Ne5 {[%emt 0:00:24]} Qd4 {[%emt 0:02:10] Black is more active.} ({Better is} 26... Qxd1 $17 27. Raxd1 Ke7) 27. Qh5 $11 {[%emt 0:03:19][%csl Ge5][%cal Rh5f7]} g6 $40 {[%emt 0:00:45][%mdl 128] White needs to defend precisely.} 28. Qh6 {[%emt 0:02:26][%mdl 8192] Black continues to play with concentration.} Nxd3 $19 {[%emt 0:00:25]} 29. Nxd3 {[%emt 0:00:14]} Qxd3 {[%emt 0:00:16]} 30. Rad1 {[%emt 0:00:25]} Qxd1 {[%emt 0:00:30]} 31. Rxd1 {[%emt 0:00:01]} Rxd1+ {[%emt 0:00:08]} 32. Kh2 {[%emt 0:00:01]} Rd4 {[%emt 0:00:22]} 33. b3 {[%emt 0:00:38]} b6 {[%emt 0:00:45]} 34. Qg7 {[%emt 0:00:29]} Rf8 {[%emt 0:00:05]} 35. Qxh7 {[%emt 0:01:28]} Rd2 {[%emt 0:00:17][%csl LRa2,LRf2]} 36. Kg1 {[%emt 0:00:10]} Rxa2 {[%emt 0:00:09]} 37. Qg7 {[%emt 0:00:04]} Rd2 {[%emt 0:00:23]} 38. f3 {[%emt 0:00:39]} Rd3 {[%emt 0:00:18]} 39. Qe5 {[%emt 0:00:20]} Kd7 {[%emt 0:00:17]} 40. Qg7 {[%emt 0:00:01]} Ke7 {[%emt 0:00:13]} 41. Qe5 {[%emt 0:00:03]} Rc8 {[%emt 0:00:29]} 42. Qg5+ {[%emt 0:00:04]} Ke8 {[%emt 0:00:50]} 43. g4 {[%emt 0:00:41]} Rxb3 {[%emt 0:00:46] aiming for ...a5.} 44. Qf6 {[%emt 0:00:01]} a5 {[%emt 0:01:15][%cal Ba7a5,Ba5a4,Ba4a3][%mdl 32] Hoping for ...a4.} 45. g5 {[%emt 0:00:30]} a4 {[%emt 0:00:57] Black mates.} 46. Qh8+ {[%emt 0:00:13]} Kd7 {[%emt 0:00:25]} 47. Qg7 {[%emt 0:00:02]} a3 {[%emt 0:00:31]} 48. Qxf7+ {[%emt 0:00:05]} Kd8 {[%emt 0:00:12]} 49. Qf6+ {[%emt 0:02:51]} Kc7 {[%emt 0:00:15]} 50. Qa1 {[%emt 0:00:19]} Ra8 {[%emt 0:00:21]} 51. Qe5+ {[%emt 0:00:02]} Kb7 {[%emt 0:00:41]} 52. Qg7+ {[%emt 0:00:01]} Ka6 {[%emt 0:00:23]} 53. Qa1 {[%emt 0:00:01]} Rd8 {[%emt 0:00:29]} 54. Kh2 {[%emt 0:00:04]} Rd2 {[%emt 0:00:38] Weighted Error Value: White=0.48/Black=0.34} 0-1